bitfinex/quotes_ETHUSD_20220112
["timestamp","ask_amount","ask_price","bid_price","bid_amount"]
[1641991879519,0.00454739,3298.0,3297.8,2.121581]
[1641991879920,0.00113685,3297.9,3297.8,2.121581]
[1641991880120,0.00113685,3297.9,3297.7,3.0771]
[1641991880519,0.00113685,3297.9,3297.6,3.9772]
[1641991880721,0.05274433,3297.8,3297.6,3.9772]
[1641991880919,0.05274433,3297.8,3297.4,1.1607]
[1641991881127,0.00113685,3297.9,3297.3,0.00113684]
[1641991881128,0.042382,3297.9,3297.3,0.00113684]
[1641991881323,0.00113685,3297.9,3297.5,0.00113684]
[1641991881522,0.00113685,3297.9,3297.3,0.00227369]
[1641991882169,0.04911025,3297.8,3297.3,0.00227369]
[1641991882369,0.12243685,3297.9,3297.3,0.00227369]
[1641991882370,0.1213,3297.7,3297.3,0.00227369]
[1641991882571,0.1213,3297.8,3297.2,0.00284212]
[1641991883172,0.1213,3297.8,3297.3,1.20077891]
[1641991883376,0.12243685,3297.9,3297.3,1.20077891]
[1641991883575,0.00113685,3297.9,3297.4,0.00170527]
[1641991883776,0.91066522,3297.6,3297.4,0.00170527]
[1641991883971,0.00113685,3297.9,3297.4,0.00170527]
[1641991884772,0.1212,3297.8,3297.2,0.00284212]
[1641991884970,0.1212,3297.8,3297.1,0.00341054]
[1641991885370,0.1212,3297.8,3297.1,1.30585086]
[1641991885619,1.13262812,3297.9,3297.1,1.30585086]
[1641991885620,0.00341054,3297.7,3297.1,1.30585086]
[1641991885818,0.00341054,3297.7,3297.1,1.60585086]
[1641991886019,0.00284212,3297.6,3297.1,1.60585086]
[1641991886424,0.00227369,3297.5,3297.1,1.60585086]
[1641991886821,0.00170527,3297.4,3297.1,1.60585086]
[1641991887222,0.00113685,3297.3,3297.1,1.60585086]
[1641991887589,0.06141674,3297.8,3297.0,1.3]
[1641991887922,0.04195679,3297.6,3297.0,1.3]
[1641991888120,0.90986542,3297.2,3297.0,1.3]
[1641991888521,0.90986542,3297.2,3297.0,0.3]
[1641991888821,0.90986542,3297.2,3297.0,2.73231733]
[1641991889027,0.90986542,3297.2,3297.0,1.77141013]
[1641991889285,0.90986542,3297.2,3297.0,1.43231733]
[1641991890080,0.07069178,3297.1,3296.9,1.5166696]
[1641991890281,0.07069178,3297.1,3297.0,0.3]
[1641991890481,0.90986542,3297.2,3297.0,0.3]
[1641991891283,0.90990967,3297.1,3297.0,0.3]
[1641991891482,0.90990967,3297.1,3297.0,1.75388632]
[1641991892083,0.90990967,3297.1,3297.0,3.6661875]
[1641991892284,0.00284212,3297.6,3297.1,8.0]
[1641991892486,0.00284212,3297.6,3297.2,3.89601036]
[1641991892687,0.00227369,3297.5,3297.3,0.75807]
[1641991892911,0.00227369,3297.5,3297.4,0.6]
[1641991893122,1.2122,3298.6,3297.4,0.6]
[1641991893123,1.3335,3298.6,3297.4,0.3]
[1641991893322,1.3335,3298.6,3297.4,2.38452904]
[1641991893524,1.4966322,3298.1,3297.5,1.5162774]
[1641991893724,1.09158099,3298.0,3297.2,6.62652904]
[1641991893926,1.0966968,3298.0,3297.2,4.442]
[1641991894123,0.00454739,3297.9,3297.2,4.742]
[1641991894525,0.00397896,3297.8,3297.2,4.442]
[1641991894726,0.00397896,3297.8,3297.5,1.5164716]
[1641991894928,0.00341054,3297.7,3297.2,6.35900916]
[1641991895126,0.00341054,3297.7,3297.2,6.65900916]
[1641991895327,1.09158099,3298.0,3297.2,6.65900916]
[1641991895328,0.91072412,3297.4,3297.2,6.65900916]
[1641991895528,0.91072412,3297.4,3297.3,2.04468984]
[1641991895727,0.91072412,3297.4,3297.3,2.80288984]
[1641991895928,0.91072412,3297.4,3297.3,4.30975672]
[1641991896427,0.91072412,3297.4,3297.3,4.60975672]
[1641991896973,0.91072412,3297.4,3297.3,4.55975672]
[1641991897971,1.09158099,3298.0,3297.3,5.55975672]
[1641991898171,1.09158099,3298.0,3297.7,0.75808]
[1641991898376,0.00454739,3297.9,3297.8,2.1289481]
[1641991898569,0.00454739,3297.9,3297.8,5.6289481]
[1641991898770,0.00454739,3297.9,3297.8,3.27945699]
[1641991898971,0.00454739,3297.9,3297.2,1.95139]
[1641991898972,0.00454739,3297.9,3297.2,1.51639]
[1641991899172,0.00454739,3297.9,3297.2,3.5941791]
[1641991899471,0.00397896,3297.8,3297.2,0.3]
[1641991899674,0.00397896,3297.8,3297.3,3.9306]
[1641991899870,0.1213,3298.4,3297.3,3.9306]
[1641991899871,0.00341054,3297.7,3297.3,3.9306]
[1641991900076,0.00341054,3297.7,3297.4,1.50502507]
[1641991900271,0.00284212,3297.6,3297.4,2.26326627]
[1641991900717,1.09145954,3298.4,3297.4,2.26326627]
[1641991900718,0.00227369,3297.5,3297.4,2.26326627]
[1641991901217,0.00227369,3297.5,3297.4,4.33748703]
[1641991901717,0.00227369,3297.5,3297.4,7.63748703]
[1641991902324,0.00227369,3297.5,3297.4,9.39570703]
[1641991902521,0.00227369,3297.5,3297.4,13.34570703]
[1641991902922,0.00227369,3297.5,3297.4,11.27148627]
[1641991903222,1.09145954,3298.4,3298.1,0.75802]
[1641991903424,0.1212,3299.1,3298.2,7.95]
[1641991903650,0.1212,3299.7,3298.5,0.01232748]
[1641991903823,10.07631581,3300.0,3298.6,0.435]
[1641991904023,0.00397896,3299.0,3298.7,2.07651012]
[1641991904323,9.95511581,3300.0,3298.7,2.07651012]
[1641991904324,9.95511581,3300.0,3299.3,2.2727]
[1641991904503,9.95511581,3300.0,3299.4,0.3]
[1641991904702,0.00511582,3299.9,3299.4,0.3]
[1641991904908,0.00511582,3299.9,3299.6,1.515093]
[1641991905105,0.00454739,3299.8,3299.4,1.51513]
[1641991905312,0.00454739,3299.8,3299.0,1.2278]
[1641991905509,9.95511581,3300.0,3299.0,1.98564]
[1641991905510,0.12517897,3299.7,3299.0,1.98564]
[1641991905746,0.00397897,3299.7,3299.0,1.2278]
[1641991906008,0.12461055,3299.6,3299.0,1.2278]
[1641991906508,0.12461055,3299.6,3299.0,4.05111741]
[1641991906509,0.00284212,3299.5,3299.0,4.05111741]
[1641991906709,0.1212,3299.4,3299.0,4.05111741]
[1641991906908,0.1234737,3299.4,3299.0,4.05111741]
[1641991907108,0.00170528,3299.3,3299.0,4.05111741]
[1641991907512,0.00113685,3299.2,3299.0,4.05111741]
[1641991907908,0.00454739,3299.8,3299.0,1.30775741]
[1641991908127,0.1212,3299.7,3299.0,0.39720962]
[1641991908326,0.12517897,3299.7,3299.0,0.39720962]
[1641991908525,0.00341055,3299.6,3299.0,0.39720962]
[1641991908724,0.1212,3299.5,3299.0,0.39720962]
[1641991908927,0.75801,3299.3,3298.8,0.00113684]
[1641991909124,0.04936882,3299.1,3298.8,0.00113684]
[1641991909325,0.1212,3299.0,3298.5,0.00284211]
[1641991909725,0.90945785,3298.7,3298.5,0.00284211]
[1641991909926,0.90945785,3298.7,3298.6,1.52413199]
[1641991910132,0.90945785,3298.7,3298.5,0.00284211]
[1641991910326,0.90945785,3298.7,3298.6,0.00227369]
[1641991910526,0.90945785,3298.7,3298.3,0.00397896]
[1641991910932,0.91045659,3298.4,3298.3,0.00397896]
[1641991911128,0.91045659,3298.4,3298.3,1.22345052]
[1641991911785,0.90945785,3298.7,3298.3,1.22345052]
[1641991912283,0.90945785,3298.7,3298.4,0.00341054]
[1641991912483,0.90945785,3298.7,3298.3,0.31230795]
[1641991912882,0.00113685,3298.6,3298.3,0.31230795]
[1641991913885,0.00113685,3298.6,3298.1,0.15982953]
[1641991914299,0.00113685,3298.6,3298.2,0.00113684]
[1641991914489,0.1212,3298.5,3298.2,0.00113684]
[1641991914785,0.1212,3298.5,3297.8,6.81703]
[1641991914786,0.14929265,3297.9,3297.8,6.81703]
[1641991914985,0.00227369,3298.4,3297.8,6.81703]
[1641991915194,0.91058648,3297.9,3297.8,8.36761205]
[1641991915409,0.91058648,3297.9,3297.8,8.93281205]
[1641991915624,0.00170527,3298.3,3297.8,8.93281205]
[1641991916024,0.00113685,3298.2,3297.8,8.93281205]
[1641991916426,0.90958381,3298.3,3297.8,8.93281205]
[1641991916827,0.04553912,3298.2,3298.0,0.7579671]
[1641991917029,0.00113685,3298.2,3298.0,0.7579671]
[1641991917544,0.00113685,3298.2,3297.9,0.75804]
[1641991919482,0.0463272,3298.1,3297.8,1.51729685]
[1641991919684,0.00113685,3298.2,3297.8,0.00113685]
[1641991919882,0.12233685,3298.2,3297.8,0.00113685]
[1641991920082,0.12233685,3298.2,3297.6,0.00227369]
[1641991920884,0.04636514,3298.1,3297.6,0.00227369]
[1641991921282,0.12233685,3298.2,3297.6,0.00227369]
[1641991923133,0.15023783,3297.5,3297.4,0.75819]
[1641991923536,0.15023783,3297.5,3297.4,0.75932685]
[1641991925137,0.15023783,3297.5,3297.4,1.05932685]
[1641991926437,0.15023783,3297.5,3297.4,3.60932685]
[1641991927124,0.15023783,3297.5,3297.4,1.05932685]
[1641991927323,1.06002611,3297.5,3297.4,1.05932685]
[1641991928327,1.06002611,3297.5,3297.4,0.30113685]
[1641991929124,1.06002611,3297.5,3297.3,2.10263109]
[1641991929524,1.06002611,3297.5,3297.3,2.86086109]
[1641991929724,1.06002611,3297.5,3297.3,3.61903419]
[1641991930323,1.06002611,3297.5,3297.4,0.735]
[1641991930830,1.06002611,3297.5,3297.4,0.435]
[1641991931830,1.06002611,3297.5,3297.4,1.735]
[1641991932035,0.15023783,3297.5,3297.4,2.035]
[1641991932233,0.00284211,3298.1,3297.4,2.035]
[1641991932234,0.00284211,3298.1,3297.6,0.75799]
[1641991932431,0.00284211,3298.1,3297.8,0.75798]
[1641991932634,1.09144366,3298.4,3297.9,0.435]
[1641991932635,0.00341054,3298.0,3297.9,0.435]
[1641991932832,0.00341054,3298.0,3297.9,2.18239944]
[1641991933233,0.00341054,3298.0,3297.9,6.58239944]
[1641991934037,0.00341054,3298.0,3297.9,2.18239944]
[1641991935496,0.00341054,3298.0,3297.9,4.0525867]
[1641991936398,0.00341054,3298.0,3297.9,1.88239944]
[1641991936901,0.00341054,3298.0,3297.9,2.18239944]
[1641991937699,0.00341054,3298.0,3297.9,1.88239944]
[1641991938327,0.00341054,3298.0,3297.9,2.18239944]
[1641991938533,0.00341054,3298.0,3297.9,1.88239944]
[1641991938727,0.02461054,3298.3,3297.9,1.88239944]
[1641991938929,0.1212,3298.3,3298.0,1.5161637]
[1641991939130,0.00113685,3298.2,3298.0,0.75809]
[1641991939333,0.00113685,3298.2,3297.9,0.75809]
[1641991939936,0.75813,3299.1,3297.9,0.75809]
[1641991939937,0.1212,3298.8,3298.2,0.75802]
[1641991940139,0.1212,3298.8,3298.4,2.2737652]
[1641991940333,0.12461054,3298.8,3298.5,0.5561]
[1641991940535,0.12461054,3298.8,3298.0,1.64193685]
[1641991940536,0.00341054,3298.8,3298.0,1.64193685]
[1641991940748,0.1212,3298.7,3298.0,1.64193685]
[1641991941040,0.1212,3298.7,3298.2,0.75807]
[1641991941041,0.00227369,3298.6,3298.2,0.75807]
[1641991941234,0.91268348,3298.6,3298.0,1.50693685]
[1641991941434,0.00170527,3298.5,3298.0,0.30113685]
[1641991941635,0.00170527,3298.5,3298.0,0.00113685]
[1641991941879,0.00113684,3298.4,3298.1,0.7580742]
[1641991942381,0.00170527,3298.5,3298.1,1.5161242]
[1641991942681,0.00113684,3298.4,3298.1,1.5161242]
[1641991942881,0.00113684,3298.4,3298.0,0.00113685]
[1641991943181,0.00170527,3298.5,3298.0,0.00113685]
[1641991943587,0.91040979,3298.6,3297.9,0.00170527]
[1641991943588,0.00113684,3298.4,3297.9,0.00170527]
[1641991943984,0.00170527,3298.5,3298.3,1.51476236]
[1641991944185,0.00170527,3298.5,3298.3,4.9826094]
[1641991944385,0.00113684,3298.4,3298.3,4.3458694]
[1641991944584,0.00113684,3298.4,3298.3,3.4667329]
[1641991944788,0.00113684,3298.4,3298.3,3.7667329]
[1641991945185,0.00113684,3298.4,3298.3,11.7167329]
[1641991945383,0.00113684,3298.4,3298.3,13.0167329]
[1641991945631,0.1212,3299.2,3298.3,12.70617702]
[1641991945831,0.1212,3299.2,3298.6,3.0309524]
[1641991946033,0.00397897,3299.1,3298.8,2.20686696]
[1641991946235,0.00397897,3299.1,3298.9,1.9504582]
[1641991946434,0.78774324,3299.2,3298.9,1.19273]
[1641991946637,0.1212,3299.9,3299.1,7.96294944]
[1641991946833,0.1212,3299.9,3299.3,1.5151744]
[1641991947034,0.1212,3299.9,3299.4,0.5561]
[1641991947232,0.1212,3299.9,3299.4,0.8561]
[1641991947432,0.1212,3299.9,3299.7,0.7576]
[1641991947634,0.1212,3299.9,3299.8,4.735]
[1641991948032,0.1212,3299.9,3299.8,5.035]
[1641991948033,0.12631582,3299.9,3299.8,5.035]
[1641991949391,0.12631582,3299.9,3299.8,0.435]
[1641991950188,0.12631582,3299.9,3299.6,0.1211]
[1641991950390,0.04877875,3299.8,3299.6,0.1211]
[1641991950590,0.00454739,3299.8,3299.6,0.1211]
[1641991950794,0.00397897,3299.7,3299.6,0.1211]
[1641991950992,0.00397897,3299.7,3299.4,1.5154328]
[1641991951193,0.05363524,3299.6,3299.4,1.5154328]
[1641991951400,0.91354155,3299.6,3299.4,1.5154328]
[1641991951594,0.91354155,3299.6,3299.4,2.2732328]
[1641991951595,0.00284212,3299.5,3299.4,2.2732328]
[1641991951796,0.00284212,3299.5,3299.3,1.51552]
[1641991952193,0.0022737,3299.4,3299.0,1.51562]
[1641991952594,0.1212,3299.9,3299.0,4.06562]
[1641991952794,0.1212,3299.9,3299.1,0.00113685]
[1641991953037,0.00227369,3299.7,3299.1,0.00113685]
[1641991953433,0.06446352,3299.5,3299.1,0.00113685]
[1641991953635,0.12290527,3299.6,3299.1,0.00113685]
[1641991953838,0.1212,3299.6,3299.1,0.00113685]
[1641991954041,0.00113684,3299.5,3298.3,0.00568424]
[1641991954237,0.1212,3299.4,3298.1,0.00682109]
[1641991954440,0.1212,3299.4,3298.2,0.1212]
[1641991954638,0.1212,3299.4,3298.3,1.51596]
[1641991954838,0.1212,3299.4,3298.3,1.52164424]
[1641991955039,1.55959916,3299.0,3298.4,0.00511582]
[1641991955237,1.55959916,3299.0,3298.4,0.76314582]
[1641991955442,1.55959916,3299.0,3298.4,0.00511582]
[1641991955638,0.91035713,3298.8,3298.5,0.00454739]
[1641991955838,0.91035713,3298.8,3298.3,0.00568424]
[1641991956339,1.55959916,3299.0,3298.3,0.00568424]
[1641991956550,1.55959916,3299.0,3298.3,0.76372574]
[1641991956777,1.55959916,3299.0,3298.3,0.00568424]
[1641991956983,1.55959916,3299.0,3298.4,0.00511582]
[1641991957182,1.55959916,3299.0,3298.3,0.00568424]
[1641991957481,1.55959916,3299.0,3298.2,0.00625266]
[1641991957681,1.55959916,3299.0,3298.4,1.5160322]
[1641991958123,1.55959916,3299.0,3298.5,0.00454739]
[1641991958488,0.14737131,3298.0,3297.9,5.53029]
[1641991958684,1.17817131,3298.0,3297.9,5.53029]
[1641991958885,1.17817131,3298.0,3297.9,1.51893211]
[1641991959584,1.17817131,3298.0,3297.9,2.27705721]
[1641991959986,1.17817131,3298.0,3297.9,6.02705721]
[1641991960186,1.17817131,3298.0,3297.9,6.14825721]
[1641991960848,0.14737131,3298.0,3297.9,6.14825721]
[1641991962048,0.14737131,3298.0,3297.9,2.39825721]
[1641991962253,0.14737131,3298.0,3297.9,2.27705721]
[1641991963855,0.14737131,3298.0,3297.9,5.12705721]
[1641991965074,0.14737131,3298.0,3297.9,3.61096721]
[1641991967283,0.14737131,3298.0,3297.9,2.70118416]
[1641991967683,0.14737131,3298.0,3297.9,5.16290573]
[1641991968040,0.14737131,3298.0,3297.9,5.46290573]
[1641991968426,0.14737131,3298.0,3297.9,4.28410573]
[1641991968626,0.14737131,3298.0,3297.9,5.04223083]
[1641991968829,0.14737131,3298.0,3297.9,11.59223083]
[1641991969030,1.0914172,3298.5,3298.2,0.75785]
[1641991969235,1.0914172,3298.5,3298.3,0.87906]
[1641991969431,0.00284212,3298.4,3298.3,1.17906]
[1641991969627,0.00284212,3298.4,3298.3,2.36498665]
[1641991969829,0.00284211,3298.4,3298.3,6.96498665]
[1641991970026,0.00284211,3298.4,3298.3,2.60712665]
[1641991970232,0.00284211,3298.4,3298.3,3.88066035]
[1641991971133,0.00284211,3298.4,3298.3,2.97018476]
[1641991971434,0.00284211,3298.4,3298.3,2.82281665]
[1641991971633,0.00284211,3298.4,3298.3,3.58066035]
[1641991972288,0.00284211,3298.4,3298.3,3.88066035]
[1641991972485,0.00284211,3298.4,3298.3,5.18066035]
[1641991972686,0.00284211,3298.4,3298.3,5.61566035]
[1641991972887,0.00284211,3298.4,3298.3,12.56566035]
[1641991973085,3.9134,3299.6,3298.9,1.5156]
[1641991973287,0.1212,3299.8,3299.1,1.47132125]
[1641991973493,0.00625266,3299.5,3299.1,2.22914425]
[1641991973889,0.00568424,3299.4,3299.1,2.22914425]
[1641991974290,0.00511582,3299.3,3299.1,2.22914425]
[1641991974793,0.00454739,3299.2,3299.1,5.12914425]
[1641991975189,0.00454739,3299.2,3299.1,1.31884236]
[1641991975736,0.00454739,3299.2,3299.1,1.515643]
[1641991975938,0.00454739,3299.2,3299.1,0.75782]
[1641991976341,0.00454739,3299.2,3299.1,1.49282]
[1641991976543,0.1212,3299.9,3299.1,2.91402]
[1641991976742,0.1212,3299.9,3299.5,0.75754]
[1641991976948,0.00341054,3299.8,3299.6,0.1212]
[1641991977143,0.00341054,3299.8,3299.5,1.51508]
[1641991977349,0.00284212,3299.7,3299.5,3.06270971]
[1641991977744,11.26423683,3300.0,3299.5,3.06270971]
[1641991977745,11.26423683,3300.0,3299.7,0.75762]
[1641991977943,11.26423683,3300.0,3299.8,0.75762]
[1641991978145,0.91401267,3299.9,3299.8,2.27278]
[1641991979144,0.91401267,3299.9,3299.8,0.75762]
[1641991979381,0.91401267,3299.9,3299.7,0.75762]
[1641991979581,0.00397897,3299.9,3299.7,0.75762]
[1641991979784,0.00341054,3299.8,3299.7,0.75762]
[1641991980986,0.00341054,3299.8,3299.6,0.60518277]
[1641991981386,0.00284212,3299.7,3299.6,0.60518277]
[1641991982594,0.00284212,3299.7,3299.5,0.45272006]
[1641991983052,0.0022737,3299.6,3299.5,0.45272006]
[1641991983247,0.0022737,3299.6,3299.5,1.21042006]
[1641991985753,0.91239904,3299.6,3299.5,4.91042006]
[1641991985952,0.91239904,3299.6,3299.5,5.30243853]
[1641991987178,0.91239904,3299.6,3299.5,7.22186457]
[1641991988381,0.91239904,3299.6,3299.5,7.34306457]
[1641991989183,11.26423683,3300.0,3299.5,7.34306457]
[1641991989184,11.26423683,3300.0,3299.6,6.9]
[1641991989382,11.26423683,3300.0,3299.8,1.5149423]
[1641991989587,11.26423683,3300.0,3299.9,10.94384141]
[1641991989783,11.26423683,3300.0,3299.9,28.81384141]
[1641991990021,11.26423683,3300.0,3299.9,31.30796265]
[1641991990022,5.15399751,3300.0,3299.9,31.30796265]
[1641991990184,0.1212,3301.1,3300.5,0.75739]
[1641991990386,0.1211,3301.2,3300.6,1.85475349]
[1641991990650,0.00568423,3301.0,3300.6,1.5147596]
[1641991991063,0.00511581,3300.9,3300.6,1.5147596]
[1641991991253,0.00511581,3300.9,3300.7,1.52063444]
[1641991991451,0.00454739,3300.8,3300.6,3.0294896]
[1641991991659,0.00454739,3300.8,3300.7,10.96352042]
[1641991991851,1.09040324,3301.6,3301.0,1.51437]
[1641991992053,1.09040324,3301.6,3301.1,1.83633128]
[1641991992251,0.00795793,3301.4,3301.1,1.83633128]
[1641991992455,0.00796117,3301.6,3301.1,1.226507]
[1641991992660,0.1211,3302.2,3301.5,0.7570884]
[1641991992852,0.1211,3302.8,3301.7,0.7571]
[1641991993059,0.00284212,3301.9,3301.7,0.7571]
[1641991993459,0.00227369,3301.8,3301.7,0.7571]
[1641991993658,0.00227369,3301.8,3301.7,9.04072378]
[1641991993855,0.00227369,3301.8,3301.7,0.7571]
[1641991994509,0.00227369,3301.8,3301.7,11.44310832]
[1641991994708,0.00227369,3301.8,3301.7,1.1921]
[1641991994908,0.00227369,3301.8,3301.7,1.4921]
[1641991995111,0.00227369,3301.8,3301.7,19.0621]
[1641991995312,1.21110644,3302.8,3301.8,7.95]
[1641991995516,0.46477784,3302.0,3301.9,9.39511412]
[1641991995717,0.46477784,3302.0,3301.9,10.13011412]
[1641991995910,1.09000644,3302.8,3302.4,0.75694]
[1641991996112,1.53283935,3302.8,3301.5,3.727]
[1641991996312,0.12621581,3302.7,3301.5,2.00100832]
[1641991996513,0.12621581,3302.7,3301.9,0.5071206]
[1641991996713,0.00454739,3302.6,3301.6,0.00113685]
[1641991996912,0.1211,3302.5,3301.6,0.00113685]
[1641991997113,1.25728058,3302.3,3301.6,0.00113685]
[1641991997312,0.12507897,3302.5,3301.6,0.00113685]
[1641991997313,0.00341054,3302.4,3301.9,0.75715]
[1641991997523,0.90943539,3302.1,3301.7,3.02851]
[1641991997915,0.00113685,3302.0,3301.7,3.02851]
[1641991998735,0.00113685,3302.0,3301.7,3.7856676]
[1641991998936,0.00113685,3302.0,3301.8,0.75712]
[1641991999938,0.1211,3301.9,3301.5,0.00170527]
[1641992000140,0.9825,3301.9,3301.5,0.00170527]
[1641992000342,0.06440937,3301.8,3301.3,0.00284212]
[1641992000542,0.0476243,3301.6,3300.6,2.00682108]
[1641992000737,0.1211,3301.5,3300.8,0.7574]
[1641992000943,1.59836513,3301.5,3300.8,0.7574]
[1641992001137,1.59836513,3301.5,3300.9,0.00511581]
[1641992001337,0.90865189,3301.6,3300.9,0.00511581]
[1641992001538,0.90865189,3301.6,3300.9,2.00511581]
[1641992001802,0.90865189,3301.6,3300.9,0.00511581]
[1641992001985,0.90865189,3301.6,3301.1,0.7572981]
[1641992002387,0.90865189,3301.6,3301.2,0.00341054]
[1641992002786,0.90865189,3301.6,3301.0,0.76190739]
[1641992003187,0.90865189,3301.6,3301.1,0.00397896]
[1641992004589,0.90865189,3301.6,3301.2,0.60488483]
[1641992004791,0.90865189,3301.6,3301.2,1.36219483]
[1641992004991,0.00113685,3302.0,3301.3,0.00284212]
[1641992005189,1.37548118,3302.0,3301.3,0.00284212]
[1641992006235,0.90871354,3301.4,3301.3,0.00284212]
[1641992009875,0.90871354,3301.4,3301.2,1.26503695]
[1641992010276,0.90871354,3301.4,3301.2,0.35626247]
[1641992011678,0.90871354,3301.4,3301.2,1.11355247]
[1641992014041,0.90871354,3301.4,3301.3,0.1211]
[1641992014236,0.90871354,3301.4,3301.3,1.9665601]
[1641992014433,0.90871354,3301.4,3301.1,1.5145]
[1641992015534,2.36980436,3301.4,3301.1,1.5145]
[1641992015735,0.90871354,3301.4,3301.1,1.5145]
[1641992017191,0.90871354,3301.4,3301.1,5.735187]
[1641992018198,0.90871354,3301.4,3301.1,7.55769072]
[1641992018397,0.90871354,3301.4,3301.1,5.735187]
[1641992018795,1.21842629,3303.0,3301.6,8.2421251]
[1641992019002,0.1211,3304.6,3302.9,0.0122959]
[1641992019201,3.9978,3305.2,3303.1,0.2921251]
[1641992019202,0.121,3304.7,3303.1,0.2921251]
[1641992019397,0.7568,3304.7,3303.2,0.121]
[1641992019594,0.121,3304.6,3303.2,0.2921251]
[1641992019799,0.01258842,3304.6,3303.2,0.2921251]
[1641992019996,1.47155154,3304.5,3303.2,0.2921251]
[1641992020195,2.0,3304.4,3303.2,0.2921251]
[1641992020395,0.7570449,3304.2,3303.2,0.2921251]
[1641992020636,0.75704,3303.9,3303.2,0.2921251]
[1641992020837,0.121,3303.8,3303.2,0.2921251]
[1641992021034,0.01307374,3303.8,3303.2,0.2921251]
[1641992021236,0.13350532,3303.7,3303.2,0.2921251]
[1641992021538,0.01193689,3303.6,3303.2,0.2921251]
[1641992021740,0.121,3303.5,3303.2,0.2921251]
[1641992021934,1.51043125,3303.4,3303.2,0.2921251]
[1641992022136,3.721,3303.3,3303.2,0.2921251]
[1641992022336,3.73123162,3303.3,3303.2,0.2921251]
[1641992022537,4.03123162,3303.3,3303.2,0.2921251]
[1641992023540,0.13123162,3303.3,3303.2,4.5128121]
[1641992024138,0.01023162,3303.3,3303.2,4.5128121]
[1641992025395,0.01023162,3303.3,3303.2,3.60360823]
[1641992028036,0.01023162,3303.3,3303.2,2.69432995]
[1641992031534,0.01023162,3303.3,3303.2,1.78505167]
[1641992032782,0.01023162,3303.3,3303.2,1.73505167]
[1641992033785,0.01023162,3303.3,3303.2,0.82577064]
[1641992034190,0.121,3304.0,3303.3,7.95]
[1641992034388,0.121,3304.0,3303.5,0.7567651]
[1641992034389,0.071,3304.0,3303.5,0.7567651]
[1641992034585,0.00341054,3303.9,3303.6,0.556]
[1641992034788,0.00341054,3303.9,3303.6,0.435]
[1641992034987,0.00284212,3303.8,3303.6,0.435]
[1641992035383,0.0022737,3303.7,3303.6,0.435]
[1641992036134,0.0022737,3303.7,3303.2,0.82577064]
[1641992036135,0.3838626,3303.7,3303.2,0.82577064]
[1641992036333,0.04891679,3303.5,3303.2,0.82577064]
[1641992036530,0.12270527,3303.6,3303.2,0.82577064]
[1641992036731,1.17638213,3303.3,3303.2,0.82577064]
[1641992037139,0.00113685,3303.5,3303.2,0.82577064]
[1641992037734,0.00113685,3303.5,3303.2,5.04645764]
[1641992038136,1.35021906,3303.5,3303.2,5.04645764]
[1641992038935,1.35021906,3303.5,3303.2,4.13726755]
[1641992039393,0.00113685,3303.5,3303.3,0.75689]
[1641992039591,0.00113685,3303.5,3303.3,0.70689]
[1641992041500,0.00113685,3303.5,3303.3,1.4637179]
[1641992042602,0.00113685,3303.5,3303.3,2.7637179]
[1641992043042,0.00113685,3303.5,3303.4,9.62858394]
[1641992043238,0.00113685,3303.5,3303.4,10.06358394]
[1641992043441,0.00113685,3303.5,3303.4,11.06358394]
[1641992044038,0.00113685,3303.5,3303.4,8.885]
[1641992044438,0.00113685,3303.5,3303.4,8.006]
[1641992044637,0.00113685,3303.5,3303.4,9.006]
[1641992046786,0.00113685,3303.5,3303.4,1.556]
[1641992046982,0.00113685,3303.5,3303.4,4.056]
[1641992047582,0.00113685,3303.5,3303.4,3.056]
[1641992048886,0.90464543,3304.0,3303.5,7.5]
[1641992049084,0.90464543,3304.0,3303.7,0.75672]
[1641992049288,0.00170527,3303.8,3303.7,0.75672]
[1641992049691,0.00170527,3303.8,3303.7,19.36172]
[1641992049887,0.00170527,3303.8,3303.7,19.37461688]
[1641992050086,0.00170527,3303.8,3303.7,1.19172]
[1641992050290,0.00170527,3303.8,3303.7,19.06172]
[1641992050542,0.00170527,3303.8,3303.7,1.31272]
[1641992050730,0.00170527,3303.8,3303.7,2.31272]
[1641992050928,0.00170527,3303.8,3303.7,8.76272]
[1641992051329,0.00170527,3303.8,3303.7,28.19681155]
[1641992051535,0.121,3304.8,3303.8,0.7565141]
[1641992051733,5.41415434,3304.9,3304.2,1.51306]
[1641992051933,0.00454739,3304.6,3304.2,0.435]
[1641992052335,0.12497897,3304.5,3303.4,0.166287]
[1641992052536,0.3,3304.3,3303.4,0.166287]
[1641992052736,0.121,3304.2,3303.5,0.00170527]
[1641992052940,0.12327369,3304.2,3303.5,0.00170527]
[1641992053137,0.00170527,3304.1,3303.5,0.00170527]
[1641992053335,0.121,3304.0,3303.5,0.00170527]
[1641992053537,0.12213685,3304.0,3303.5,0.00170527]
[1641992053738,0.00113685,3304.0,3303.5,0.75851527]
[1641992054184,0.00113685,3304.0,3303.6,0.00113685]
[1641992054581,0.00113685,3304.0,3303.6,1.41644242]
[1641992055082,0.00113685,3304.0,3303.8,0.75673]
[1641992056080,0.00113685,3304.0,3303.9,10.02390007]
[1641992056784,0.00113685,3304.0,3303.9,0.60427589]
[1641992060231,0.00113685,3304.0,3303.7,1.63437]
[1641992060435,0.00483214,3303.9,3303.7,1.63437]
[1641992061233,0.00113685,3304.0,3303.7,1.63437]
[1641992062083,0.00113685,3304.0,3303.8,0.75665]
[1641992062284,0.00113685,3304.0,3303.9,0.75671]
[1641992062706,0.00113685,3304.0,3303.8,0.75665]
[1641992062707,0.15223493,3303.9,3303.8,0.75665]
[1641992063391,0.00113685,3304.0,3303.8,2.26996]
[1641992063785,0.00113685,3304.0,3303.9,5.11379442]
[1641992064085,0.00113685,3304.0,3303.9,5.29470509]
[1641992064286,0.00113685,3304.0,3303.9,3.621]
[1641992065084,0.00113685,3304.0,3303.9,0.121]
[1641992065732,0.00113685,3304.0,3303.9,2.721]
[1641992066132,0.00113685,3304.0,3303.9,5.99917639]
[1641992066333,0.00113685,3304.0,3303.9,24.86917639]
[1641992066735,0.00113685,3304.0,3303.9,6.99917639]
[1641992066938,0.00113685,3304.0,3303.9,4.7073]
[1641992067240,0.00113685,3304.0,3303.9,4.4073]
[1641992067439,0.00113685,3304.0,3303.9,8.627987]
[1641992069484,0.00113685,3304.0,3303.9,8.506987]
[1641992069782,0.00113685,3304.0,3303.9,7.506987]
[1641992070381,0.00113685,3304.0,3303.9,6.820687]
[1641992071486,0.00113685,3304.0,3303.9,4.220687]
[1641992073734,2.19893685,3304.0,3303.9,4.220687]
[1641992077397,2.19893685,3304.0,3303.9,1.91483343]
[1641992077598,2.19893685,3304.0,3303.8,19.38332]
[1641992077800,2.19893685,3304.0,3303.8,20.38332]